{"text_format":"1","workbook":"xlsx","n_sheets":12,"sheets":["dropboxes","Option 1 SecA-NarrativForm","Module3Instructions","Status Form","Employment","Education ","Infrastructure Asset","Housing","Health and Social","Goal 2 Civic Engagement","Goal 3 Civic Engagement","SectionC-Strategies List"],"not_rendered":{"charts":0,"images":0,"macros":1,"external_links":0,"defined_names":33,"comments":1,"pivot_tables":0},"unopened":[],"bounds":{"document_bytes":16777216,"sheet_cells":100000,"rows_first":2000,"rows_last":500,"rows_between":2000,"halvings":0,"cell_chars":16384,"cell_head_chars":4096},"cells_cut":0,"cells_raw":0,"read":"whole","date_system":"1900"}

{"sheet":"dropboxes","index":0,"n_rows":96,"n_cols":23,"rows_kept":96,"cut":false,"hidden":true,"merged":[[45,0,45,6],[46,0,46,6],[47,0,47,6]]}
["Project Year","Expected Duration",null,"Domains","Work"]
[1,"0-1 years",null,"Employment","Independent  ",null,null,null,null,null,null,null,null,null,null,null,null,null,null,null,null,null,"Minimum/Living Wage Campaign"]
[2,"1-2 years",null,"Education_and_Cognitive_Development","In Partnership",null,null,null,null,null,null,null,null,null,null,null,null,null,null,null,null,null,"Job Creation Initiative/Employment Generating Project"]
[3,"3-4 years",null,"Infrastructure_and_Asset_Building","Collective Impact, CAA as backbone",null,null,null,null,null,null,null,null,null,null,null,null,null,null,null,null,null,"EITC Campaign"]
[4,"4-5 years",null,"Housing","Collective Impact, CAA as contributing member",null,null,null,null,null,null,null,null,null,null,null,null,null,null,null,null,null,"WIOA One Stop Management"]
[5,"5-6 years",null,"Health_and_Social_Behavioral_Development",null,null,null,null,null,null,null,null,null,null,null,null,null,null,null,null,null,null,"Commercial Space Management"]
[6,"7 + years",null,"Civic_Engagement_Community_Involvement",null,null,null,null,null,null,null,null,null,null,null,null,null,null,null,null,null,null,"Employer Education on Low-Income Issues"]
["7+",null,null,null,null,null,null,null,null,null,null,null,null,null,null,null,null,null,null,null,null,null,"‘Preschool for All’ Campaign"]
["initiative ended early",null,null,null,null,null,null,null,null,null,null,null,null,null,null,null,null,null,null,null,null,null,"Charter Schools (create or oppose)"]
["initiative ended as planned ",null,null,null,null,null,null,null,null,null,null,null,null,null,null,null,null,null,null,null,null,null,"K-College/Community College Support Programs"]
[null,null,null,null,null,null,null,null,null,null,null,null,null,null,null,null,null,null,null,null,null,null,"Children’s Trust Funds Creation"]
[null,null,null,null,null,null,null,null,null,null,null,null,null,null,null,null,null,null,null,null,null,null,"Scholarship Creation"]
[null,"Yes",null,null,null,null,null,null,null,null,null,null,null,null,null,null,null,null,null,null,null,null,"Child Tax Credit (CTC) Campaigns"]
[null,"No",null,null,null,null,null,null,null,null,null,null,null,null,null,null,null,null,null,null,null,null,"Child Care Quality Rating Initiatives"]
["Scale",null,null,null,null,null,null,null,null,null,null,null,null,null,null,null,null,null,null,null,null,null,"Community Reinvestment Act (CRA) Campaigns"]
["Neighborhood",null,null,null,null,null,null,null,null,null,null,null,null,null,null,null,null,null,null,null,null,null,"Financial Institution Creation"]
["City","Initiative has numeric baseline (Add number manually _____) (Add Source manually ____)",null,null,null,null,null,null,null,null,null,null,null,null,null,null,null,null,null,null,null,null,"Cultural Assets Creation"]
["School District","Initiative has no numeric baseline. Rationale/ Reason: _____add text manually_____",null,null,null,null,null,null,null,null,null,null,null,null,null,null,null,null,null,null,null,null,"Police/Community Relations Initiatives"]
["County","Initiative is working to establish a numeric baseline during this reporting period.",null,null,null,null,null,null,null,null,null,null,null,null,null,null,null,null,null,null,null,null,"Neighborhood Watch Programs"]
["Service Area",null,null,null,null,null,null,null,null,null,null,null,null,null,null,null,null,null,null,null,null,null,"Eliminate Asset Limit Campaigns (Cliff affect)"]
["State",null,null,null,null,null,null,null,null,null,null,null,null,null,null,null,null,null,null,null,null,null,"Farmers Market, Grocery Centers Creation (eliminating food deserts)"]
["Region",null,null,null,null,null,null,null,null,null,null,null,null,null,null,null,null,null,null,null,null,null,"Against Anti-Predatory Lending Campaign"]
["Other",null,null,null,null,null,null,null,null,null,null,null,null,null,null,null,null,null,null,null,null,null,"Asset Building and Saving Campaign (earn it, keep it, grow it)"]
[null,null,null,null,null,null,null,null,null,null,null,null,null,null,null,null,null,null,null,null,null,null,"Develop/Build/Rehab Space Provision  (under market rate)"]
[null,null,null,null,null,null,null,null,null,null,null,null,null,null,null,null,null,null,null,null,null,null,"Maintain or Host Volunteer Income Tax Preparation (VITA) Sites"]
[null,null,null,null,null,null,null,null,null,null,null,null,null,null,null,null,null,null,null,null,null,null,"Crime Prevention Through Environmental Design (CPTED) Initiative"]
[null,null,null,null,null,null,null,null,null,null,null,null,null,null,null,null,null,null,null,null,null,null,"Creation of Community-Wide Data Collection Systems"]
[null,null,null,null,null,null,null,null,null,null,null,null,null,null,null,null,null,null,null,null,null,null,"Local 211 or Resource/Referral System Coordination and Support"]
[null,null,null,null,null,null,null,null,null,null,null,null,null,null,null,null,null,null,null,null,null,null,"Water/Sewer System Development"]
[null,null,null,null,null,null,null,null,null,null,null,null,null,null,null,null,null,null,null,null,null,null,"Building Façade Improvements"]
[null,null,null,null,null,null,null,null,null,null,null,null,null,null,null,null,null,null,null,null,null,null,"Maintain a Community Development Financial Institution (CDFI)"]
[null,null,null,null,null,null,null,null,null,null,null,null,null,null,null,null,null,null,null,null,null,null,"Gun Safety/Control Campaigns"]
[null,null,null,null,null,null,null,null,null,null,null,null,null,null,null,null,null,null,null,null,null,null,"Infrastructure Planning Coalition"]
[null,null,null,null,null,null,null,null,null,null,null,null,null,null,null,null,null,null,null,null,null,null,"Park Creation and Maintenance"]
[null,null,null,null,null,null,null,null,null,null,null,null,null,null,null,null,null,null,null,null,null,null,"End Chronic Homelessness Campaign (among veterans or other populations )"]
[null,null,null,null,null,null,null,null,null,null,null,null,null,null,null,null,null,null,null,null,null,null,"Development of Affordable Housing (SROs, temporary housing, transitional housing)"]
[null,null,null,null,null,null,null,null,null,null,null,null,null,null,null,null,null,null,null,null,null,null,"Tenants’ Rights Campaigns"]
[null,null,null,null,null,null,null,null,null,null,null,null,null,null,null,null,null,null,null,null,null,null,"Creation of New Shelters (including day shelters and domestic violence shelters)"]
[null,null,null,null,null,null,null,null,null,null,null,null,null,null,null,null,null,null,null,null,null,null,"Single Room Occupancy (SRO) housing"]
[null,null,null,null,null,null,null,null,null,null,null,null,null,null,null,null,null,null,null,null,null,null,"Transitional Housing Creation"]
[null,null,null,null,null,null,null,null,null,null,null,null,null,null,null,null,null,null,null,null,null,null,"Housing First Initiatives"]
[null,null,null,null,null,null,null,null,null,null,null,null,null,null,null,null,null,null,null,null,null,null,"Housing Trusts Creation"]
[null,null,null,null,null,null,null,null,null,null,null,null,null,null,null,null,null,null,null,null,null,null,"Land Trusts Creation"]
[null,null,null,null,null,null,null,null,null,null,null,null,null,null,null,null,null,null,null,null,null,null,"Building Codes Campaign"]
[null,null,null,null,null,null,null,null,null,null,null,null,null,null,null,null,null,null,null,null,null,null,"Continuum of Care Coalition"]
["Module 3, Section B: Community Level National Performance Indicator Landing Page",null,null,null,null,null,null,null,null,null,null,null,null,null,null,null,null,null,null,null,null,null,"Health Specific Campaigns: Radon, Fire Safety, Lead, Asthma"]
["Agencies will only report on community level national performance indicators that measure and demonstrate the impact of the community level initiatives and changes they have chosen to pursue. Agencies will select all indicators for which they have outcomes to report from the list below, for all appropriate domains. Agencies will fill out a single data entry page that will be generated based on the indicators and domains they have selected. The pages in this document represent all of the possible domains and indicators that agencies may report, and the data points necessary for accurate and quality reporting. The data entry forms for each indicator can be found on pages",null,null,null,null,null,null,null,null,null,null,null,null,null,null,null,null,null,null,null,null,null,"Health Fairs"]
["Employment (check all NPIS for which CAA has outcomes to report)\n",null,null,null,null,null,null,null,null,null,null,null,null,null,null,null,null,null,null,null,null,null,"Community Gardens"]
["¨","1. The number of jobs created to increase opportunities for people with low incomes available in the specified community. ",null,null,null,null,null,null,null,null,null,null,null,null,null,null,null,null,null,null,null,null,"Coordinated Community Needs Assessment with Hospitals (ACA)"]
["¨","2. The number of jobs maintained for people in the specified community.            ",null,null,null,null,null,null,null,null,null,null,null,null,null,null,null,null,null,null,null,null,"Mentor or Ally Building Initiatives"]
["¨","3. The number of “living wage ” jobs created in the specified community.",null,null,null,null,null,null,null,null,null,null,null,null,null,null,null,null,null,null,null,null,"Awareness Campaigns"]
["¨","4. The number of “living wage” jobs maintained in the specified community. ",null,null,null,null,null,null,null,null,null,null,null,null,null,null,null,null,null,null,null,null,"Local Healthy Food Access Initiative (Combating Food Deserts and Nutrition Education Collaborative)"]
["¨","5. The number of jobs in the targeted community with a benefit package. ",null,null,null,null,null,null,null,null,null,null,null,null,null,null,null,null,null,null,null,null,"Community-wide Food Bank"]
["¨","6. Other Outcome Indicator. ",null,null,null,null,null,null,null,null,null,null,null,null,null,null,null,null,null,null,null,null,"Creation of a Farmer’s Market"]
["Education and Cognitive Development (check all NPIS for which CAA has outcomes to report)\n",null,null,null,null,null,null,null,null,null,null,null,null,null,null,null,null,null,null,null,null,null,"Domestic Violence Court Development"]
["¨","1. The number of accessible and affordable education assets or resources added to the specified community.",null,null,null,null,null,null,null,null,null,null,null,null,null,null,null,null,null,null,null,null,"Drug Court Development"]
["¨","2. Percent increase of children in the community who are kindergarten ready in the specified community. ",null,null,null,null,null,null,null,null,null,null,null,null,null,null,null,null,null,null,null,null,"Access to Alternative Energy Sources"]
["¨","3. Percent increase of children at (or above) the basic reading level in the specified community.",null,null,null,null,null,null,null,null,null,null,null,null,null,null,null,null,null,null,null,null,"Initiatives focused on Seniors and Aging"]
["¨","4. Percent increase of children at (or above) the basic math level in in the specified community.",null,null,null,null,null,null,null,null,null,null,null,null,null,null,null,null,null,null,null,null,"Developing or Maintaining a Health Clinic"]
["¨","5. Percent increase in high school (or high school equivalency) graduation rate in the specified community.",null,null,null,null,null,null,null,null,null,null,null,null,null,null,null,null,null,null,null,null,"Crime Prevention through Environmental Design Initiatives"]
["¨","6. Percent increase of the rate of youth with low incomes who attend post-secondary education in the specified community.",null,null,null,null,null,null,null,null,null,null,null,null,null,null,null,null,null,null,null,null,"Technical Assistance to Childcare Providers"]
["¨","7. Percent increase of the rate of youth with low incomes who graduate from post-secondary education in the specified community. ",null,null,null,null,null,null,null,null,null,null,null,null,null,null,null,null,null,null,null,null,"Creation of Off-Hours Child Care"]
["¨","8. Percent increase in the number of adults who attend post-secondary education in the specified community. ",null,null,null,null,null,null,null,null,null,null,null,null,null,null,null,null,null,null,null,null,"Transportation System Development"]
["¨","9. The number increase of the number of adults with low incomes who graduate from post-secondary education in the specified community. ",null,null,null,null,null,null,null,null,null,null,null,null,null,null,null,null,null,null,null,null,"Transportation Services Coordination and Support"]
["¨","10. Percent increase in the adult literacy rate in the specified community. ",null,null,null,null,null,null,null,null,null,null,null,null,null,null,null,null,null,null,null,null,"FEMA Emergency Food and Shelter Program Board Participation"]
["¨","11. Other Outcome Indicator.",null,null,null,null,null,null,null,null,null,null,null,null,null,null,null,null,null,null,null,null,"State or County Emergency Management Board Participation"]
["Infrastructure and Asset Building (check all NPIS for which CAA has outcomes to report)",null,null,null,null,null,null,null,null,null,null,null,null,null,null,null,null,null,null,null,null,null,"Emergency Disaster Relief Services"]
["¨","1. The number of accessible assets/resources created in the specified community (new assets/resources) (A. Commercial; B. Financial; C. Technological/ Communications (e.g. broadband); D. Transportation; E. Recreational (e.g. parks, gardens, libraries); F. Other Public Assets/Physical Improvements)",null,null,null,null,null,null,null,null,null,null,null,null,null,null,null,null,null,null,null,null,"Disaster Preparation"]
["¨","2. The number of existing assets/resources made accessible  to low-income communities in the specified community  (A. Commercial; B. Financial; C. Technological/ Communications (e.g. broadband); D. Transportation; E. Recreational (e.g. parks, gardens, libraries); F. Other Public Assets/Physical Improvements)",null,null,null,null,null,null,null,null,null,null,null,null,null,null,null,null,null,null,null,null,"Bridges Out of Poverty or other Community Engagement Campaign"]
["¨","3. The number of barriers/negative conditions decreased within a specified community. (A. Abandoned buildings; B. Police and community relations; C. Decreased emergency response time; D. Predatory lending; E. Environmental threats)  ",null,null,null,null,null,null,null,null,null,null,null,null,null,null,null,null,null,null,null,null,"Recruiting and Coordinating Community Volunteers"]
["¨","4. Other Outcome Indicator.",null,null,null,null,null,null,null,null,null,null,null,null,null,null,null,null,null,null,null,null,"Poverty Simulations"]
["Housing (check all NPIS for which CAA has outcomes to report) ",null,null,null,null,null,null,null,null,null,null,null,null,null,null,null,null,null,null,null,null,null,"Attract Capital Investments"]
["¨","1. The number of safe and affordable housing units developed in the specified community (e.g. built or units set aside for people with low incomes).",null,null,null,null,null,null,null,null,null,null,null,null,null,null,null,null,null,null,null,null,"Family Court Partnerships"]
["¨","2. The number of safe and affordable housing units maintained through WAP or other rehabilitation efforts in the specified community. ",null,null,null,null,null,null,null,null,null,null,null,null,null,null,null,null,null,null,null,null,"Other strategy"]
["¨","3. The number of safe and affordable housing units whose value and quality was improved through WAP or other rehabilitation efforts in the specified community."]
["¨","4. The number of shelter beds  established in the specified community. "]
["¨","5. The number increase of shelter beds maintained in the specified community. "]
["¨","6. Percent decrease in the rate of homelessness in the specified community. "]
["¨","7. Percent decrease in the foreclosure rate in the specified community. "]
["¨","8. Percent increase in the rate of home ownership of people with low incomes in the specified community. "]
["¨","9. Other (please specify)"]
["Health and Social/Behavioral (check all NPIS for which CAA has outcomes to report)"]
["¨","1. Health assets or resources. (A. Physical health; B. Behavioral and mental health; C. Healthy, accessible, and affordable food options)"]
["¨","2. Physical health, wellbeing, and development. (A. Infant mortality; B, Child Obesity; C. Adult Obesity; D. Child immunization; E. Uninsured families)"]
["¨","3. Behavioral and Mental health, emotional wellbeing, and development. (A. Teen pregnancy; B. Unplanned pregnancies; C. Substance use; D. Domestic violence; E. Child and elder abuse/neglect)"]
["¨","4. Public Safety. (A. Recidivism; B. Non-violent crime; C. Violent crime; D. Teens involved with juvenile system)"]
["¨","5. The number  of emergency management plans created and/or enhanced in the specified community (earthquake, hurricane, tornado proofing, flood measures, other strategies against natural disasters)."]
["¨","6. Other Outcome Indicator."]
["Civic Engagement and Community Involvement - Goal 2 (check all NPIS for which CAA has outcomes to report)"]
["¨","1. The percent increase of donated time to support Community Action’s delivery of services and/or implementation of strategies to address conditions in the specified community. "]
["¨","2. The percent increase of donated resources to support Community Action’s delivery of services and/or or implementation of strategies to address conditions in the specified community. "]
["¨","3. The percent increase of people participating in public hearings, policy forums, community planning, or other advisory boards related to Community Action’s delivery of service and/or or implementation of strategies to address conditions in the specified community. "]
["¨","4. Other Outcome Indicator."]
["¨","1. Increased percent people with low incomes who support Community Action’s delivery of service and/or implementation of strategies to address conditions in the specified community. "]
["¨","2. Increased percent of people with low incomes who acquire and maintain leadership roles with Community Action or other organizations  within the specified community. "]
["¨","3. Other Outcome Indicator."]

{"sheet":"Option 1 SecA-NarrativForm","index":1,"n_rows":17,"n_cols":2,"rows_kept":17,"cut":false,"hidden":true,"merged":[[15,1,15,2],[16,1,16,2],[0,1,0,3],[1,1,1,2],[4,1,4,2],[5,1,5,2],[6,1,6,2],[7,1,7,2],[8,1,8,2],[9,1,9,2],[10,1,10,2],[11,1,11,2],[12,1,12,2],[13,1,13,2],[14,1,14,2]]}
[null,"Option 1: Module 3, Section A: Community Level Initiative Report"]
[null,"CSBG Eligible Entities will use this form to report on initiatives intended to achieve community level outcomes. The information reported on this status page will provide valuable information about community initiatives in the current reporting period. This form also allows CSBG Eligible Entities to note initiatives that ended or were completed in the current reporting period, report on NPIs achieved, and provide comments and explanations. CSBG Eligible Entities will update the initiative's progress in future reporting periods."]
[null,"1. Name of CSBG Eligible Entity Reporting: "]
[null,"2. Initiative Name: "]
[null,"3. Initiative Year: (use dropdown menu to select one of the following options: 1-7+ years)"]
[null,"4. Provide a narrative on the scope of the problem."]
[null,"5. Provide a narrative describing the agenda and goals for this initiative. "]
[null,"6.  Use the provided dropdown menu to select one of the following options to identify the initiatives relevant domain: Employment, Education and Cognitive Development, Income, Infrastructure, and Asset Building, Housing, Health and Social/Behavioral Development, or Civic Engagement and Community Involvement."]
[null,"7.  Please identify the ultimate expected outcome using the provided Community NPI Forms."]
[null,"8. Identify the specific community for this initiative by selecting one of the following options: Neighborhood, City, School District, County, Service Area, State, Region, or Other."]
[null,"9. Provide the expected duration for this initiative using the provided dropdown menu to select one of the following options: 0-1 years, 1-2 years, 2-3 years, 3-4 years, 4-5 years, 5-6 years, or 7+ years."]
[null,"10.  Report partnerships by selecting one of the following options: Independent CAA Initiative, CAA is the core organizer of multi-partner Initiative, or CAA is one of multiple active investors and partners."]
[null,"11. Provide a narrative describing any collaboration efforts with the initiative's top 1-3 partners."]
[null,"12.  Select strategies that were implemented from the provided Community Level Strategies list."]
[null,"13. Using the Community NPI forms please report any progress on all relevant outcomes/Indicators.  This can include any progress on interim outcomes and/or final outcomes. Please provide additional information on the scope of the impact of these outcomes. (e.g. If an initiative created a health clinic, please describe how many individuals and families are expected to be impacted.)"]
[null,"14. Final Status - use dropdown menu to select one of the following options: Initiative Active, Initiative Ended Early, Initiative Ended as Planned, Completed Still Delivering Value."]
[null,"15. Provide a narrative on any lessons learned during this reporting period. "]

{"sheet":"Module3Instructions","index":2,"n_rows":31,"n_cols":3,"rows_kept":31,"cut":false,"hidden":false,"merged":[[14,1,14,3],[24,1,24,3],[22,2,22,3],[25,1,25,3],[28,1,28,3],[30,1,30,3],[4,1,4,3],[6,1,6,3],[7,1,7,3],[9,1,9,3],[8,1,8,3],[10,1,10,3],[15,1,15,3],[20,2,20,3],[26,1,26,3],[16,1,16,3],[18,1,18,3],[12,1,12,3]]}
[]
[null,null,"Instructional Notes"]
[null,null,"Module 3 - Community Level"]
[]
[null,"Module 3, Section A: Community Initiative Status Form"]
[]
[null,"CSBG Eligible Entities will complete the Community Initiative Status Form for the CSBG Eligible Entity identified initiatives intended to achieve community level outcomes. This form provides a central place to report valuable information about a single community initiative that started, continued, or ended during the current reporting period. The information reported on the status form will be selected via a dropdown menu or written as a narrative. In future reporting periods, CSBG Eligible Entities will update the status form based on the initiative's progress. Please see additional notes below:"]
[null,"Problem Identification: CSBG Eligible Entities will provide information on how the problem was identified in the Community Needs Assessment. This will include any data collected."]
[null,"Issue/CSBG Community Domains: Select the domain(s) category(ies) that best describe the issue addressed by the initiative. A full list is provided in the Status Form."]
[null,"Ultimate Expected Outcomes: Select the indicator(s) from the Community Level NPIs (full list is found in Section B) that measures the ultimate expected outcome of the initiative OR enter an \"Other Outcome Indicator\"."]
[null,"Partnership Type: Select the partnership type from the choices provided. For example, a multi-partner initiative includes the CSBG Eligible Entity and one or more partners."]
[]
[null,"Module 3, Section B: Community National Performance Indicators (NPIs) - Data Entry Form"]
[]
[null,"To facilitate the reporting, use, and learning from Community NPIs the Annual Report provides two types of indicators (Counts of Change and Rates of Change). Based on the community-level work in which the CSBG Eligible Entity is engaged, select the appropriate NPIs in either section. All the NPIs are optional and a category of “other” exists for a CSBG Eligible Entity to create its own indicator if none of those provided captures what the CSBG Eligible Entity is trying to achieve."]
[null,"The first way to report impact is the Counts of Change indicators. These are basic measures that provide the number of units being measured, e.g. jobs, houses, resources, etc. that have been added (created) or subtracted (eliminated), and in some cases maintained, in the community the CSBG Eligible Entity has targeted.   "]
[null,"The second way to report impact is the Rates of Change indicators. While requiring a bit more information, these indicators tell the full story of the magnitude of the impacta community initiative (usually involving multiple organizations) has had in a community.  "]
[]
[null,"In the Rates of Change section, the measures call for reporting the “percent change”—the increase or decrease of something from one year to the next.  Please see the example below."]
[]
[null,null,"Counts of Change Example: If you are measuring a percent increase in shelter beds, you would provide the following information: \nII.) Baseline existing starting point used for comparisons (#): Total Number of shelter beds (last year)\nIII.)  Target (#): Targeted Number of shelter beds\nV.)  Actual Results (#): Actual number of shelter beds for the year\n\n"]
[]
[null,null,"Rates of Change Example: If you are measuring a percent increase in the high school graduation rate in the  identified community (in this case one school district), you would provide the following information: \nII.) Baseline existing starting point used for comparisons (%): High School Graduation Rate (last year)\nIII.)  Target (%): Targeted High School Graduation Rate\nV.)  Actual Results (%): Actual High School Graduation Rate (at the end of the initiative)\n\n"]
[]
[null,"The calculation for a percent increase or decrease for the community NPI rates of change is auto calculated in column VI (actual percent change from baseline). The same logic applies when reporting a percent decrease."]
[null,"Note, outcomes will only be reported once a community initiative has been reached or when progress has been made toward the ultimate expected outcome. If progress has not been made, there is a place to identify this in the Community Initiative Status Form."]
[null,"Assistance with these types of calculations can either be obtained locally or from the national partners. "]
[]
[null,"Module 3, Section C: Community Strategies List"]
[]
[null,"CSBG Eligible Entities will use the Community Strategies field provided in the Community Initiative Status form to identify relevant strategies community level initiative. A complete listing of the Community Strategies is found in Section C. The Community Strategies List provides a basic identification of strategies, arranged by Domain and by topic area.  The list cannot be all-inclusive, as such an “other” category is included.  This standardized list will aid in local and state analysis of the relationship between community-level strategies and outcomes. "]

{"sheet":"Status Form","index":3,"n_rows":21,"n_cols":3,"rows_kept":21,"cut":false,"hidden":false,"merged":[[0,1,0,3],[2,1,2,2],[5,2,5,3],[6,2,6,3],[7,2,7,3],[8,2,8,3],[4,2,4,3],[9,2,9,3],[10,2,10,3],[11,2,11,3],[17,2,17,3],[18,2,18,3],[19,2,19,3],[20,2,20,3],[12,2,12,3],[13,2,13,3],[14,2,14,3],[15,2,15,3],[16,2,16,3]]}
[null,"Module 3, Section A: Community Initiative Status Form"]
[]
[null,"Name of CSBG Eligible Entity Reporting: "]
[]
[null,null,"Use the dropdown menu to select the response where appropriate."]
[null,"1. Initiative Name"]
[null,"2. Initiative Year\n","1-7+ years"]
[null,"3. Problem Identification\n","Narrative \n(Provide a narrative on the scope of the problem)"]
[null,"4. Goal/Agenda ","Narrative\n(Provide a narrative on the goal/agenda)"]
[null,"5. Issue/CSBG Community Domains \n"," Employment; Education and Cognitive Development; Income, Infrastructure, and Asset Building; Housing; Health and Social/Behavioral Development; or Civic Engagement and Community Involvement"]
[null,"6. Ultimate Expected Outcome ","Community Level National Performance Indicators (NPIs)\n(Reference the Community NPIs listed in Section B)"]
[null,"7. Identified Community\n","Neighborhood, City, School District, County, Service Area, State, Region, or Other"]
[null,"8. Expected Duration\n","Narrative\n(Provide the range in years, e.g. 1-3 years)"]
[null,"9. Partnership Type\n","Independent CAA Initiative, CAA is the core organizer of multi-partner Initiative, or CAA is one of multiple active investors and partners"]
[null,"10. Partners\n","Narrative\n(Provide a narrative on the key 1-3 partners)"]
[null,"11. Strategy(ies)","\nSelect from the Community Level Strategies listed in Section C"]
[null,"12. Progress on Outcomes/Indicators","No Outcomes to Report, Interim Outcomes, Final Outcomes "]
[null,"13. Impact of Outcomes","Narrative \n(Provide additional information on the scope of the impact of these outcomes. e.g. If an initiative created a health clinic, please describe how many individuals and families are expected to be impacted.)"]
[null,"14. Outcomes/Indicators to Report","Community Level National Performance Indicators (NPIs)\n(Reference the Community NPIs listed in Section B)"]
[null,"15. Final Status\n","Initiative Active, Initiative Ended Early, Initiative Ended as Planned, Completed Still Delivering Value"]
[null,"16. Lessons Learned\n","Narrative"]

{"sheet":"Employment","index":4,"n_rows":31,"n_cols":12,"rows_kept":31,"cut":false,"hidden":false,"merged":[[1,1,1,11],[2,1,2,11],[3,1,3,11],[12,2,12,7],[7,2,7,7],[7,1,12,1],[8,2,8,7],[9,2,9,7],[10,2,10,7],[11,2,11,7],[5,6,5,10],[13,1,13,11],[26,2,26,4],[25,1,28,1],[28,2,28,4],[20,2,20,4],[21,2,21,4],[22,2,22,4],[23,2,23,4],[15,2,15,7],[16,2,16,7],[18,2,18,7],[25,2,25,4],[15,1,18,1],[20,1,23,1],[17,2,17,7],[27,2,27,4]]}
[]
[null,"Module 3, Section B: Community National Performance Indicators (CNPIs) - Data Entry Form"]
[null,"Goal 2: Communities where people with low incomes live are healthy and offer economic opportunity."]
[null,"Employment Indicators"]
[]
[null,null,null,null,null,"Name of CSBG Eligible Entity Reporting: "]
[]
[null,"Counts\n of Change","Counts of Change for Employment Indicators (CNPI 1)",null,null,null,null,null,"I.)  Identified Community\n(auto-populated)","II.)  Target \n(#)","III.)  Actual Results\n(#)","IV.) Performance target accuracy \n(% auto calculated)"]
[null,null,"CNPI 1a Number of jobs created to increase opportunities for people with low incomes in the identified community. ",null,null,null,null,null,null,null,null,{"$f":"ROUND(K9/J9,2)","v":{"$error":"#DIV/0!"}}]
[null,null,"CNPI 1b Number of job opportunities maintained in the identified community.            ",null,null,null,null,null,null,null,null,{"$f":"ROUND(K10/J10,2)","v":{"$error":"#DIV/0!"}}]
[null,null,"CNPI 1c Number of “living wage ” jobs created in the identified community*.",null,null,null,null,null,null,null,null,{"$f":"ROUND(K11/J11,2)","v":{"$error":"#DIV/0!"}}]
[null,null,"CNPI 1d Number of “living wage”  jobs maintained in the  identified community*. ",null,null,null,null,null,null,null,null,{"$f":"ROUND(K12/J12,2)","v":{"$error":"#DIV/0!"}}]
[null,null,"CNPI 1e Number of jobs created in the identified community with a benefit package. ",null,null,null,null,null,null,null,null,{"$f":"ROUND(K13/J13,2)","v":{"$error":"#DIV/0!"}}]
[null,"*When reporting on indicators related to living wage, agencies can provide their own definition or select from national or locally-defined models. Please indicate the living wage definition used in the General Comment box. "]
[]
[null,"Other Counts of Change","Other Counts of Change for Employment Indicators (CNPI 1z) - Please specify below.",null,null,null,null,null,"I.)  Identified Community\n(auto-populated)","II.)  Target \n(#)","III.)  Actual Results\n(#)","IV.) Performance target accuracy \n(% auto calculated)"]
[null,null,"CNPI 1z.1 Other",null,null,null,null,null,null,null,null,{"$f":"ROUND(K17/J17,2)","v":{"$error":"#DIV/0!"}}]
[null,null,"CNPI 1z.2 Other",null,null,null,null,null,null,null,null,{"$f":"ROUND(K18/J18,2)","v":{"$error":"#DIV/0!"}}]
[null,null,"CNPI 1z.3 Other",null,null,null,null,null,null,null,null,{"$f":"ROUND(K19/J19,2)","v":{"$error":"#DIV/0!"}}]
[]
[null,"Rates of Change","Rates of Change for Employment Indicators (CNPI 1)",null,null,"I.)  Identified Community\n(auto-populated)","II.) Baseline existing starting point used for comparisons \n(%)","III.)  Target \n(%)","IV.)  Expected % change from baseline \n(Target %  auto calculated) ","V.)  Actual Results\n(%)","VI.)  Actual % change from baseline \n(% auto calculated) ","VII.) Performance target accuracy\n(% auto calculated)"]
[null,null,"CNPI 1f Percent decrease of the unemployment rate.",null,null,null,null,null,{"$f":"ROUND((H22-G22)/G22,2)","v":{"$error":"#DIV/0!"}},null,{"$f":"ROUND((J22-G22)/G22,2)","v":{"$error":"#DIV/0!"}},{"$f":"ROUND((J22-G22)/(H22-G22),2)","v":{"$error":"#DIV/0!"}}]
[null,null,"CNPI 1g Percent decrease of the youth unemployment rate.",null,null,null,null,null,{"$f":"ROUND((H23-G23)/G23,2)","v":{"$error":"#DIV/0!"}},null,{"$f":"ROUND((J23-G23)/G23,2)","v":{"$error":"#DIV/0!"}},{"$f":"ROUND((J23-G23)/(H23-G23),2)","v":{"$error":"#DIV/0!"}}]
[null,null,"CNPI 1h Percent decrease of the underemployment rate.",null,null,null,null,null,{"$f":"ROUND((H24-G24)/G24,2)","v":{"$error":"#DIV/0!"}},null,{"$f":"ROUND((J24-G24)/G24,2)","v":{"$error":"#DIV/0!"}},{"$f":"ROUND((J24-G24)/(H24-G24),2)","v":{"$error":"#DIV/0!"}}]
[]
[null,"Other Rates of Change","Other Rates of Change for Employment Indicators (CNPI 1z) \n- Please specify below.",null,null,"I.)  Identified Community\n(auto-populated)","II.) Baseline existing starting point used for comparisons \n(%)","III.)  Target \n(%)","IV.)  Expected % change from baseline \n(Target %  auto calculated) ","V.)  Actual Results\n(%)","VI.)  Actual % change from baseline \n(% auto calculated) ","VII.) Performance target accuracy\n(% auto calculated)"]
[null,null,"CNPI 1z.4 Other",null,null,null,null,null,{"$f":"ROUND((H27-G27)/G27,2)","v":{"$error":"#DIV/0!"}},null,{"$f":"ROUND((J27-G27)/G27,2)","v":{"$error":"#DIV/0!"}},{"$f":"ROUND((J27-G27)/(H27-G27),2)","v":{"$error":"#DIV/0!"}}]
[null,null,"CNPI 1z.5 Other",null,null,null,null,null,{"$f":"ROUND((H28-G28)/G28,2)","v":{"$error":"#DIV/0!"}},null,{"$f":"ROUND((J28-G28)/G28,2)","v":{"$error":"#DIV/0!"}},{"$f":"ROUND((J28-G28)/(H28-G28),2)","v":{"$error":"#DIV/0!"}}]
[null,null,"CNPI 1z.6 Other",null,null,null,null,null,{"$f":"ROUND((H29-G29)/G29,2)","v":{"$error":"#DIV/0!"}},null,{"$f":"ROUND((J29-G29)/G29,2)","v":{"$error":"#DIV/0!"}},{"$f":"ROUND((J29-G29)/(H29-G29),2)","v":{"$error":"#DIV/0!"}}]
[]
[null,"General comments:"]

{"sheet":"Education ","index":5,"n_rows":36,"n_cols":12,"rows_kept":36,"cut":false,"hidden":false,"merged":[[25,2,25,4],[28,2,28,4],[29,2,29,4],[27,2,27,4],[26,2,26,4],[1,1,1,11],[2,1,2,11],[3,1,3,11],[7,2,7,7],[8,2,8,7],[7,1,13,1],[5,6,5,10],[9,2,9,7],[10,2,10,7],[12,2,12,7],[11,2,11,7],[13,2,13,7],[17,2,17,7],[33,2,33,4],[15,1,18,1],[15,2,15,7],[16,2,16,7],[18,2,18,7],[31,1,34,1],[31,2,31,4],[32,2,32,4],[34,2,34,4],[22,2,22,4],[23,2,23,4],[24,2,24,4],[20,1,29,1],[20,2,20,4],[21,2,21,4]]}
[]
[null,"Module 3, Section B: Community National Performance Indicators (CNPIs) - Data Entry Form"]
[null,"Goal 2: Communities where people with low incomes live are healthy and offer economic opportunity."]
[null,"Education and Cognitive Development Indicators"]
[]
[null,null,null,null,null,"Name of CSBG Eligible Entity Reporting: "]
[]
[null,"Counts\n of Change","Counts of Change for Education and Cognitive Development Indicators (CNPI 2)",null,null,null,null,null,"I.)  Identified Community\n(auto-populated)","II.)  Target \n(#)","III.)  Actual Results\n(#)","IV.) Performance target accuracy \n(% auto calculated)"]
[null,null,"CNPI 2a Number of accessible and affordable early childhood or pre-school education assets or resources added to the identified community. ",null,null,null,null,null,null,null,null,{"$f":"ROUND(K9/J9,2)","v":{"$error":"#DIV/0!"}}]
[null,null,"CNPI 2b Number of accredited or licensed affordable child care facilities added in the identified community. ",null,null,null,null,null,null,null,null,{"$error":"#DIV/0!"}]
[null,null,"CNPI 2c Number of new Early Childhood Screenings offered to children (ages 0-5) of families with low-incomes in the identified community. ",null,null,null,null,null,null,null,null,{"$error":"#DIV/0!"}]
[null,null,"CNPI 2d Number of accessible and affordable education assets or resources added for school age children in the identified community.  (e.g., academic, enrichment activities, before/after school care, summer programs)",null,null,null,null,null,null,null,null,{"$error":"#DIV/0!"}]
[null,null,"CNPI 2e Number of accessible and affordable post secondary education assets or resources added for newly graduating youth in the identified community.  (e.g. college tuition, scholarships, vocational training, etc.) ",null,null,null,null,null,null,null,null,{"$error":"#DIV/0!"}]
[null,null,"CNPI 2f Number of accessible and affordable basic or secondary education assets or resources added for adults in the identified community.  (e.g. literacy, ESL, ABE/GED, etc.) ",null,null,null,null,null,null,null,null,{"$error":"#DIV/0!"}]
[]
[null,"Other Counts of Change","Other Counts of Change for Education and Cognitive Development Indicators (CNPI 2z) - Please specify below.",null,null,null,null,null,"I.)  Identified Community\n(auto-populated)","II.)  Target \n(#)","III.)  Actual Results\n(#)","IV.) Performance target accuracy \n(% auto calculated)"]
[null,null,"CNPI 2z.1 Other",null,null,null,null,null,null,null,null,{"$f":"ROUND(K17/J17,2)","v":{"$error":"#DIV/0!"}}]
[null,null,"CNPI 2z.2 Other",null,null,null,null,null,null,null,null,{"$f":"ROUND(K18/J18,2)","v":{"$error":"#DIV/0!"}}]
[null,null,"CNPI 2z.3 Other",null,null,null,null,null,null,null,null,{"$f":"ROUND(K19/J19,2)","v":{"$error":"#DIV/0!"}}]
[]
[null,"Rates of Change","Rates of Change for Education and Cognitive Development Indicators (CNPI 2)",null,null,"I.)  Identified Community\n(auto-populated)","II.) Baseline existing starting point used for comparisons \n(%)","III.)  Target \n(%)","IV.)  Expected % change from baseline \n(Target %  auto calculated) ","V.)  Actual Results\n(%)","VI.)  Actual % change from baseline \n(% auto calculated) ","VII.) Performance target accuracy\n(% auto calculated)"]
[null,null,"CNPI 2g Percent increase of children in the identified community who are kindergarten ready. ",null,null,null,null,null,{"$f":"ROUND((H22-G22)/G22,2)","v":{"$error":"#DIV/0!"}},null,{"$f":"ROUND((J22-G22)/G22,2)","v":{"$error":"#DIV/0!"}},{"$f":"ROUND((J22-G22)/(H22-G22),2)","v":{"$error":"#DIV/0!"}}]
[null,null,"CNPI 2h Percent increase of children in the identified community at (or above) the basic reading level.",null,null,null,null,null,{"$error":"#DIV/0!"},null,{"$error":"#DIV/0!"},{"$error":"#DIV/0!"}]
[null,null,"CNPI 2i Percent increase of children in the identified community at (or above) the basic math level.",null,null,null,null,null,{"$error":"#DIV/0!"},null,{"$error":"#DIV/0!"},{"$error":"#DIV/0!"}]
[null,null,"CNPI 2j Percent increase in high school (or high school equivalency) graduation rate in the  identified community.",null,null,null,null,null,{"$error":"#DIV/0!"},null,{"$error":"#DIV/0!"},{"$error":"#DIV/0!"}]
[null,null,"CNPI 2k Percent increase of the rate of youth in the identified community  who attend post-secondary education.",null,null,null,null,null,{"$error":"#DIV/0!"},null,{"$error":"#DIV/0!"},{"$error":"#DIV/0!"}]
[null,null,"CNPI 2l Percent increase of the rate of youth in the identified community who graduate from post-secondary education. ",null,null,null,null,null,{"$error":"#DIV/0!"},null,{"$error":"#DIV/0!"},{"$error":"#DIV/0!"}]
[null,null,"CNPI 2m Percent increase of adults in the identified community who attend post-secondary education. ",null,null,null,null,null,{"$error":"#DIV/0!"},null,{"$error":"#DIV/0!"},{"$error":"#DIV/0!"}]
[null,null,"CNPI 2n Percent increase of adults in the  identified community who graduate from post-secondary education.",null,null,null,null,null,{"$error":"#DIV/0!"},null,{"$error":"#DIV/0!"},{"$error":"#DIV/0!"}]
[null,null,"CNPI 2o Percent increase in the adult literacy rate in the identified community . ",null,null,null,null,null,{"$error":"#DIV/0!"},null,{"$error":"#DIV/0!"},{"$error":"#DIV/0!"}]
[]
[null,"Other Rates of Change","Other Rates of Change for Education and Cognitive Development Indicators (CNPI 2z)\n- Please specify below.",null,null,"I.)  Identified Community\n(auto populated)","II.) Baseline existing starting point used for comparisons \n(%)","III.)  Target \n(%)","IV.)  Expected % change from baseline \n(Target %  auto calculated) ","V.)  Actual Results\n(%)","VI.)  Actual % change from baseline \n(% auto calculated) ","VII.) Performance target accuracy\n(% auto calculated)"]
[null,null,"CNPI 2z.4 Other",null,null,null,null,null,{"$f":"ROUND((H33-G33)/G33,2)","v":{"$error":"#DIV/0!"}},null,{"$f":"ROUND((J33-G33)/G33,2)","v":{"$error":"#DIV/0!"}},{"$f":"ROUND((J33-G33)/(H33-G33),2)","v":{"$error":"#DIV/0!"}}]
[null,null,"CNPI 2z.5 Other",null,null,null,null,null,{"$f":"ROUND((H34-G34)/G34,2)","v":{"$error":"#DIV/0!"}},null,{"$f":"ROUND((J34-G34)/G34,2)","v":{"$error":"#DIV/0!"}},{"$f":"ROUND((J34-G34)/(H34-G34),2)","v":{"$error":"#DIV/0!"}}]
[null,null,"CNPI 2z.6 Other",null,null,null,null,null,{"$f":"ROUND((H35-G35)/G35,2)","v":{"$error":"#DIV/0!"}},null,{"$f":"ROUND((J35-G35)/G35,2)","v":{"$error":"#DIV/0!"}},{"$f":"ROUND((J35-G35)/(H35-G35),2)","v":{"$error":"#DIV/0!"}}]
[null,"General comments:"]

{"sheet":"Infrastructure Asset","index":6,"n_rows":41,"n_cols":13,"rows_kept":41,"cut":false,"hidden":false,"merged":[[12,4,12,5],[11,4,11,5],[15,2,15,9],[16,4,16,5],[33,2,33,5],[23,2,23,5],[24,2,24,5],[26,2,26,5],[1,0,1,12],[2,0,2,12],[9,4,9,5],[7,2,7,5],[8,2,8,9],[7,1,21,1],[5,6,5,9],[17,4,17,5],[3,0,3,12],[10,4,10,5],[14,4,14,5],[13,4,13,5],[18,4,18,5],[19,4,19,5],[20,4,20,5],[21,4,21,5],[35,1,38,1],[38,2,38,5],[28,1,33,1],[22,1,22,6],[23,1,26,1],[35,2,35,5],[36,2,36,5],[28,2,28,5],[29,2,29,5],[30,2,30,5],[31,2,31,5],[32,2,32,5],[25,2,25,5],[37,2,37,5]]}
[]
["Module 3, Section B: Community National Performance Indicators (CNPIs) - Data Entry Form"]
["Goal 2: Communities where people with low incomes live are healthy and offer economic opportunity."]
["Infrastructure and Asset Building Indicators"]
[]
[null,null,null,null,null,"Name of CSBG Eligible Entity Reporting: "]
[]
[null,"Counts\n of Change","Counts of Change for Infrastructure and Asset Building Indicators (CNPI 3)",null,null,null,"I.)  Identified Community\n(auto-populated)","II.)  Target \n(#)","III.)  Actual Results\n(#)","IV.) Performance target accuracy \n(% auto calculated)"]
[null,null,"CNPI 3a Number of new accessible assets/resources created in the identified community:"]
[null,null,null,"CNPI 3a.1","Commercial",null,null,null,null,{"$f":"ROUND(I10/H10,2)","v":{"$error":"#DIV/0!"}}]
[null,null,null,"CNPI 3a.2","Financial",null,null,null,null,{"$error":"#DIV/0!"}]
[null,null,null,"CNPI 3a.3","Technological/ Communications (e.g. broadband)",null,null,null,null,{"$error":"#DIV/0!"}]
[null,null,null,"CNPI 3a.4","Transportation",null,null,null,null,{"$error":"#DIV/0!"}]
[null,null,null,"CNPI 3a.5","Recreational (e.g. parks, gardens, libraries)",null,null,null,null,{"$error":"#DIV/0!"}]
[null,null,null,"CNPI 3a.6","Other Public Assets/Physical Improvements",null,null,null,null,{"$f":"ROUND(I15/H15,2)","v":{"$error":"#DIV/0!"}}]
[null,null,"CNPI 3b Number of existing assets/resources made accessible to the identified community:"]
[null,null,null,"CNPI 3b.1","Commercial",null,null,null,null,{"$f":"ROUND(I17/H17,2)","v":{"$error":"#DIV/0!"}}]
[null,null,null,"CNPI 3b.2","Financial",null,null,null,null,{"$error":"#DIV/0!"}]
[null,null,null,"CNPI 3b.3","Technological/ Communications (e.g. broadband)",null,null,null,null,{"$error":"#DIV/0!"}]
[null,null,null,"CNPI 3b.4","Transportation",null,null,null,null,{"$error":"#DIV/0!"}]
[null,null,null,"CNPI 3b.5","Recreational (e.g. parks, gardens, libraries)",null,null,null,null,{"$error":"#DIV/0!"}]
[null,null,null,"CNPI 3b.6","Other Public Assets/Physical Improvements",null,null,null,null,{"$error":"#DIV/0!"}]
[]
[null,"Other Counts of Change","Other Counts of Change for Infrastructure and Asset Building Indicators (CNPI 3z) - Please specify below.",null,null,null,"I.)  Identified Community\n(auto populated)","II.)  Target \n(#)","III.)  Actual Results\n(#)","IV.) Performance target accuracy \n(% auto calculated)"]
[null,null,"CNPI 3z.1 Other",null,null,null,null,null,null,{"$f":"ROUND(I25/H25,2)","v":{"$error":"#DIV/0!"}}]
[null,null,"CNPI 3z.2 Other",null,null,null,null,null,null,{"$f":"ROUND(I26/H26,2)","v":{"$error":"#DIV/0!"}}]
[null,null,"CNPI 3z.3 Other",null,null,null,null,null,null,{"$f":"ROUND(I27/H27,2)","v":{"$error":"#DIV/0!"}}]
[]
[null,"Rates of Change","Rates of Change for Infrastructure and Asset Building Indicators (CNPI 3)",null,null,null,"I.)  Identified Community\n(auto-populated)","II.) Baseline existing starting point used for comparisons \n(%)","III.)  Target \n(%)","IV.)  Expected % change from baseline \n(Target %  auto calculated) ","V.)  Actual Results\n(%)","VI.)  Actual % change from baseline \n(% auto calculated) ","VII.) Performance target accuracy\n(% auto calculated)"]
[null,null,"CNPI 3c Percent decrease of abandoned or neglected buildings in the identified community.",null,null,null,null,null,null,{"$f":"ROUND((I30-H30)/H30,2)","v":{"$error":"#DIV/0!"}},null,{"$f":"ROUND((K30-H30)/H30,2)","v":{"$error":"#DIV/0!"}},{"$f":"ROUND((K30-H30)/(I30-H30),2)","v":{"$error":"#DIV/0!"}}]
[null,null,"CNPI 3d Percent decrease in emergency response time measured in minutes in the identified community. (EMT, Police, Fire, etc.).",null,null,null,null,null,null,{"$f":"ROUND((I31-H31)/H31,2)","v":{"$error":"#DIV/0!"}},null,{"$f":"ROUND((K31-H31)/H31,2)","v":{"$error":"#DIV/0!"}},{"$f":"ROUND((K31-H31)/(I31-H31),2)","v":{"$error":"#DIV/0!"}}]
[null,null,"CNPI 3e Percent decrease of predatory lenders and/or lending practices in the identified community.",null,null,null,null,null,null,{"$f":"ROUND((I32-H32)/H32,2)","v":{"$error":"#DIV/0!"}},null,{"$f":"ROUND((K32-H32)/H32,2)","v":{"$error":"#DIV/0!"}},{"$f":"ROUND((K32-H32)/(I32-H32),2)","v":{"$error":"#DIV/0!"}}]
[null,null,"CNPI 3f Percent decrease of environmental threats to households (toxic soil, radon, lead, air quality, quality of drinking water, etc.) in the identified community.",null,null,null,null,null,null,{"$f":"ROUND((I33-H33)/H33,2)","v":{"$error":"#DIV/0!"}},null,{"$f":"ROUND((K33-H33)/H33,2)","v":{"$error":"#DIV/0!"}},{"$f":"ROUND((K33-H33)/(I33-H33),2)","v":{"$error":"#DIV/0!"}}]
[null,null,"CNPI 3g Percent increase of transportation services in the identified community.",null,null,null,null,null,null,{"$f":"ROUND((I34-H34)/H34,2)","v":{"$error":"#DIV/0!"}},null,{"$f":"ROUND((K34-H34)/H34,2)","v":{"$error":"#DIV/0!"}},{"$f":"ROUND((K34-H34)/(I34-H34),2)","v":{"$error":"#DIV/0!"}}]
[]
[null,"Other Rates of Change","Other Rates of Change for Infrastructure and Asset Building Indicators (CNPI 3z)\n- Please specify below.",null,null,null,"I.)  Identified Community\n(auto-populated)","II.) Baseline existing starting point used for comparisons \n(%)","III.)  Target \n(%)","IV.)  Expected % change from baseline \n(Target %  auto calculated) ","V.)  Actual Results\n(%)","VI.)  Actual % change from baseline \n(% auto calculated) ","VII.) Performance target accuracy\n(% auto calculated)"]
[null,null,"CNPI 3z.4 Other",null,null,null,null,null,null,{"$f":"ROUND((I37-H37)/H37,2)","v":{"$error":"#DIV/0!"}},null,{"$f":"ROUND((K37-H37)/H37,2)","v":{"$error":"#DIV/0!"}},{"$f":"ROUND((K37-H37)/(I37-H37),2)","v":{"$error":"#DIV/0!"}}]
[null,null,"CNPI 3z.5 Other",null,null,null,null,null,null,{"$f":"ROUND((I38-H38)/H38,2)","v":{"$error":"#DIV/0!"}},null,{"$f":"ROUND((K38-H38)/H38,2)","v":{"$error":"#DIV/0!"}},{"$f":"ROUND((K38-H38)/(I38-H38),2)","v":{"$error":"#DIV/0!"}}]
[null,null,"CNPI 3z.6 Other",null,null,null,null,null,null,{"$f":"ROUND((I39-H39)/H39,2)","v":{"$error":"#DIV/0!"}},null,{"$f":"ROUND((K39-H39)/H39,2)","v":{"$error":"#DIV/0!"}},{"$f":"ROUND((K39-H39)/(I39-H39),2)","v":{"$error":"#DIV/0!"}}]
[]
[null,"General comments:"]

{"sheet":"Housing","index":7,"n_rows":32,"n_cols":12,"rows_kept":32,"cut":false,"hidden":false,"merged":[[25,2,25,4],[26,2,26,4],[18,1,23,1],[18,2,18,4],[19,2,19,4],[20,2,20,4],[21,2,21,4],[23,2,23,4],[22,2,22,4],[25,1,28,1],[27,2,27,4],[28,2,28,4],[11,2,11,7],[13,2,13,7],[14,2,14,7],[1,1,1,11],[2,1,2,11],[3,1,3,11],[7,2,7,7],[8,2,8,7],[9,2,9,7],[10,2,10,7],[7,1,11,1],[5,5,5,9],[13,1,16,1],[15,2,15,7],[16,2,16,7]]}
[]
[null,"Module 3, Section B: Community National Performance Indicators (CNPIs) - Data Entry Form"]
[null,"Goal 2: Communities where people with low incomes live are healthy and offer economic opportunity."]
[null,"Housing Indicators"]
[]
[null,null,null,null,"Name of CSBG Eligible Entity Reporting: "]
[]
[null,"Counts\n of Change","Counts of Change for Housing Indicators (CNPI 4)",null,null,null,null,null,"I.)  Identified Community\n(auto-populated)","II.)  Target \n(#)","III.)  Actual Results\n(#)","IV.) Performance target accuracy \n(% auto calculated)"]
[null,null,"CNPI 4a Number of safe and affordable housing units developed in the identified community (e.g. built or set aside units for people with low incomes).",null,null,null,null,null,null,null,null,{"$f":"ROUND(K9/J9,2)","v":{"$error":"#DIV/0!"}}]
[null,null,"CNPI 4b Number of safe and affordable housing units maintained  and/or improved through WAP or other rehabilitation efforts in the identified community. ",null,null,null,null,null,null,null,null,{"$f":"ROUND(K10/J10,2)","v":{"$error":"#DIV/0!"}}]
[null,null,"CNPI 4c Number of shelter beds created in the identified community. ",null,null,null,null,null,null,null,null,{"$f":"ROUND(K11/J11,2)","v":{"$error":"#DIV/0!"}}]
[null,null,"CNPI 4d Number of shelter beds maintained in the identified community. ",null,null,null,null,null,null,null,null,{"$f":"ROUND(K12/J12,2)","v":{"$error":"#DIV/0!"}}]
[]
[null,"Other Counts of Change","Other Counts of Change for Housing Indicators (CNPI 4z) - Please specify below.",null,null,null,null,null,"I.)  Identified Community\n(auto-populated)","II.)  Target \n(#)","III.)  Actual Results\n(#)","IV.) Performance target accuracy \n(% auto calculated)"]
[null,null,"CNPI 4z.1 Other",null,null,null,null,null,null,null,null,{"$f":"ROUND(K15/J15,2)","v":{"$error":"#DIV/0!"}}]
[null,null,"CNPI 4z.2 Other",null,null,null,null,null,null,null,null,{"$f":"ROUND(K16/J16,2)","v":{"$error":"#DIV/0!"}}]
[null,null,"CNPI 4z.3 Other",null,null,null,null,null,null,null,null,{"$error":"#DIV/0!"}]
[]
[null,"Rates of Change","Rates of Change for Housing Indicators (CNPI 4)",null,null,"I.)  Identified Community\n(auto-populated)","II.) Baseline existing starting point used for comparisons \n(%)","III.)  Target \n(%)","IV.)  Expected % change from baseline \n(Target %  auto calculated) ","V.)  Actual Results\n(%)","VI.)  Actual % change from baseline \n(% auto calculated) ","VII.) Performance target accuracy\n(% auto calculated)"]
[null,null,"CNPI 4e Percent decrease in the rate of homelessness in the identified community. ",null,null,null,null,null,{"$f":"ROUND((H20-G20)/G20,2)","v":{"$error":"#DIV/0!"}},null,{"$f":"ROUND((J20-G20)/G20,2)","v":{"$error":"#DIV/0!"}},{"$f":"ROUND((J20-G20)/(H20-G20),2)","v":{"$error":"#DIV/0!"}}]
[null,null,"CNPI 4f Percent decrease in the foreclosure rate in the identified community.",null,null,null,null,null,{"$f":"ROUND((H21-G21)/G21,2)","v":{"$error":"#DIV/0!"}},null,{"$f":"ROUND((J21-G21)/G21,2)","v":{"$error":"#DIV/0!"}},{"$f":"ROUND((J21-G21)/(H21-G21),2)","v":{"$error":"#DIV/0!"}}]
[null,null,"CNPI 4g Percent increase in the rate of home ownership of people with low incomes in the identified community.",null,null,null,null,null,{"$f":"ROUND((H22-G22)/G22,2)","v":{"$error":"#DIV/0!"}},null,{"$f":"ROUND((J22-G22)/G22,2)","v":{"$error":"#DIV/0!"}},{"$f":"ROUND((J22-G22)/(H22-G22),2)","v":{"$error":"#DIV/0!"}}]
[null,null,"CNPI 4h Percent increase of affordable housing in the identified community.",null,null,null,null,null,{"$f":"ROUND((H23-G23)/G23,2)","v":{"$error":"#DIV/0!"}},null,{"$f":"ROUND((J23-G23)/G23,2)","v":{"$error":"#DIV/0!"}},{"$f":"ROUND((J23-G23)/(H23-G23),2)","v":{"$error":"#DIV/0!"}}]
[null,null,"CNPI 4i Percent increase of shelter beds in the identified community.",null,null,null,null,null,{"$f":"ROUND((H24-G24)/G24,2)","v":{"$error":"#DIV/0!"}},null,{"$f":"ROUND((J24-G24)/G24,2)","v":{"$error":"#DIV/0!"}},{"$f":"ROUND((J24-G24)/(H24-G24),2)","v":{"$error":"#DIV/0!"}}]
[]
[null,"Other Rates of Change","Other Rates of Change for Housing Indicators (CNPI 4z)\n- Please specify below.",null,null,"I.)  Identified Community\n(auto populated)","II.) Baseline existing starting point used for comparisons \n(%)","III.)  Target \n(%)","IV.)  Expected % change from baseline \n(Target %  auto calculated) ","V.)  Actual Results\n(%)","VI.)  Actual % change from baseline \n(% auto calculated) ","VII.) Performance target accuracy\n(% auto calculated)"]
[null,null,"CNPI 4z.4 Other",null,null,null,null,null,{"$f":"ROUND((H27-G27)/G27,2)","v":{"$error":"#DIV/0!"}},null,{"$f":"ROUND((J27-G27)/G27,2)","v":{"$error":"#DIV/0!"}},{"$f":"ROUND((J27-G27)/(H27-G27),2)","v":{"$error":"#DIV/0!"}}]
[null,null,"CNPI 4z.5 Other",null,null,null,null,null,{"$f":"ROUND((H28-G28)/G28,2)","v":{"$error":"#DIV/0!"}},null,{"$f":"ROUND((J28-G28)/G28,2)","v":{"$error":"#DIV/0!"}},{"$f":"ROUND((J28-G28)/(H28-G28),2)","v":{"$error":"#DIV/0!"}}]
[null,null,"CNPI 4z.6 Other",null,null,null,null,null,{"$error":"#DIV/0!"},null,{"$error":"#DIV/0!"},{"$error":"#DIV/0!"}]
[]
[]
[null,"General comments:"]

{"sheet":"Health and Social","index":8,"n_rows":47,"n_cols":12,"rows_kept":47,"cut":false,"hidden":false,"merged":[[7,1,12,1],[35,1,39,1],[32,2,32,4],[25,1,33,1],[25,2,25,4],[26,2,26,4],[27,2,27,4],[28,2,28,4],[29,2,29,4],[33,2,33,4],[35,2,35,4],[36,2,36,4],[37,2,37,4],[38,2,38,4],[39,2,39,4],[12,2,12,7],[5,5,5,9],[41,2,41,4],[42,2,42,4],[1,1,1,11],[2,1,2,11],[3,1,3,11],[7,2,7,7],[8,2,8,7],[9,2,9,7],[10,2,10,7],[11,2,11,7],[14,2,14,7],[15,2,15,7],[19,1,24,1],[31,2,31,4],[30,2,30,4],[14,1,17,1],[16,2,16,7],[17,2,17,7],[41,1,44,1],[43,2,43,4],[44,2,44,4],[19,2,19,4],[20,2,20,4],[21,2,21,4],[22,2,22,4],[23,2,23,4],[24,2,24,4]]}
[]
[null,"Module 3, Section B: Community National Performance Indicators (CNPIs) - Data Entry Form"]
[null,"Goal 2: Communities where people with low incomes live are healthy and offer economic opportunity."]
[null,"Health and Social/Behavioral Indicators"]
[]
[null,null,null,null,"Name of CSBG Eligible Entity Reporting: "]
[]
[null,"Counts\n of Change","Counts of Change for Health and Social/Behavioral Indicators (CNPI 5)",null,null,null,null,null,"I.)  Identified Community\n(auto-populated)","II.)  Target \n(#)","III.)  Actual Results\n(#)","IV.) Performance target accuracy \n(% auto calculated)"]
[null,null,"CNPI 5a Number of accessible and affordable physical health assets or resources created in the identified community. ",null,null,null,null,null,null,null,null,{"$f":"ROUND(K9/J9,2)","v":{"$error":"#DIV/0!"}}]
[null,null,"CNPI 5b Number of accessible and affordable behavioral and mental health assets or resources created in the identified community.     ",null,null,null,null,null,null,null,null,{"$f":"ROUND(K10/J10,2)","v":{"$error":"#DIV/0!"}}]
[null,null,"CNPI 5c Number of public safety assets and resources created in the identified community.     ",null,null,null,null,null,null,null,null,{"$f":"ROUND(K11/J11,2)","v":{"$error":"#DIV/0!"}}]
[null,null,"CNPI 5d Number of accessible and affordable healthy food resources created in the identified community.",null,null,null,null,null,null,null,null,{"$f":"ROUND(K12/J12,2)","v":{"$error":"#DIV/0!"}}]
[null,null,"CNPI 5e Number of activities designed to improve police and community relations within the identified community.",null,null,null,null,null,null,null,null,{"$f":"ROUND(K13/J13,2)","v":{"$error":"#DIV/0!"}}]
[]
[null,"Other Counts of Change","Other Counts of Change for Health and Social/Behavioral Indicators (CNPI 5z) - Please specify below.",null,null,null,null,null,"I.)  Identified Community\n(auto-populated)","II.)  Target \n(#)","III.)  Actual Results\n(#)","IV.) Performance target accuracy \n(% auto calculated)"]
[null,null,"CNPI 5z.1 Other",null,null,null,null,null,null,null,null,{"$f":"ROUND(K16/J16,2)","v":{"$error":"#DIV/0!"}}]
[null,null,"CNPI 5z.2 Other",null,null,null,null,null,null,null,null,{"$f":"ROUND(K17/J17,2)","v":{"$error":"#DIV/0!"}}]
[null,null,"CNPI 5z.3 Other",null,null,null,null,null,null,null,null,{"$error":"#DIV/0!"}]
[]
[null,"Rates of Change","Rates of Change for Physical Health, Wellbeing, and Development Indicators (CNPI 5)",null,null,"I.)  Identified Community\n(auto-populated)","II.) Baseline existing starting point used for comparisons \n(%)","III.)  Target \n(%)","IV.)  Expected % change from baseline \n(Target %  auto calculated) ","V.)  Actual Results\n(%)","VI.)  Actual % change from baseline \n(% auto calculated) ","VII.) Performance target accuracy\n(% auto calculated)"]
[null,null,"CNPI 5f Percent decrease in infant mortality rate in the identified community.",null,null,null,null,null,{"$f":"ROUND((H21-G21)/G21,2)","v":{"$error":"#DIV/0!"}},null,{"$f":"ROUND((J21-G21)/G21,2)","v":{"$error":"#DIV/0!"}},{"$f":"ROUND((J21-G21)/(H21-G21),2)","v":{"$error":"#DIV/0!"}}]
[null,null,"CNPI 5g Percent decrease in childhood obesity rate in the identified community. ",null,null,null,null,null,{"$f":"ROUND((H22-G22)/G22,2)","v":{"$error":"#DIV/0!"}},null,{"$f":"ROUND((J22-G22)/G22,2)","v":{"$error":"#DIV/0!"}},{"$f":"ROUND((J22-G22)/(H22-G22),2)","v":{"$error":"#DIV/0!"}}]
[null,null,"CNPI 5h Percent decrease in adult obesity rate in the identified community.",null,null,null,null,null,{"$f":"ROUND((H23-G23)/G23,2)","v":{"$error":"#DIV/0!"}},null,{"$f":"ROUND((J23-G23)/G23,2)","v":{"$error":"#DIV/0!"}},{"$f":"ROUND((J23-G23)/(H23-G23),2)","v":{"$error":"#DIV/0!"}}]
[null,null,"CNPI 5i Percent increase in child immunization rate in the identified community. ",null,null,null,null,null,{"$f":"ROUND((H24-G24)/G24,2)","v":{"$error":"#DIV/0!"}},null,{"$f":"ROUND((J24-G24)/G24,2)","v":{"$error":"#DIV/0!"}},{"$f":"ROUND((J24-G24)/(H24-G24),2)","v":{"$error":"#DIV/0!"}}]
[null,null,"CNPI 5j Percent decrease in uninsured families in the identified community. ",null,null,null,null,null,{"$f":"ROUND((H25-G25)/G25,2)","v":{"$error":"#DIV/0!"}},null,{"$f":"ROUND((J25-G25)/G25,2)","v":{"$error":"#DIV/0!"}},{"$f":"ROUND((J25-G25)/(H25-G25),2)","v":{"$error":"#DIV/0!"}}]
[null,"Rates of Change","Rates of Change for Behavioral and Mental health, Emotional Wellbeing, and Development Indicators (CNPI 5)",null,null,"I.)  Identified Community\n(auto-populated)","II.) Baseline existing starting point used for comparisons \n(%)","III.)  Target \n(%)","IV.)  Expected % change from baseline \n(Target %  auto calculated) ","V.)  Actual Results\n(%)","VI.)  Actual % change from baseline \n(% auto calculated) ","VII.) Performance target accuracy\n(% auto calculated)"]
[null,null,"CNPI 5k Percent decrease in the teen pregnancy rate in the identified community.",null,null,null,null,null,{"$f":"ROUND((H27-G27)/G27,2)","v":{"$error":"#DIV/0!"}},null,{"$f":"ROUND((J27-G27)/G27,2)","v":{"$error":"#DIV/0!"}},{"$f":"ROUND((J27-G27)/(H27-G27),2)","v":{"$error":"#DIV/0!"}}]
[null,null,"CNPI 5l Percent decrease in unplanned pregnancies in the identified community.",null,null,null,null,null,{"$error":"#DIV/0!"},null,{"$error":"#DIV/0!"},{"$error":"#DIV/0!"}]
[null,null,"CNPI 5m Percent decrease in substance abuse rate in the identified community.(e.g. cigarettes, prescription drugs, narcotics, alcohol). ",null,null,null,null,null,{"$error":"#DIV/0!"},null,{"$error":"#DIV/0!"},{"$error":"#DIV/0!"}]
[null,null,"CNPI 5n Percent decrease in domestic violence rate in the identified community.",null,null,null,null,null,{"$error":"#DIV/0!"},null,{"$error":"#DIV/0!"},{"$error":"#DIV/0!"}]
[null,null,"CNPI 5o Percent decrease in the child abuse rate in the identified community.",null,null,null,null,null,{"$error":"#DIV/0!"},null,{"$error":"#DIV/0!"},{"$error":"#DIV/0!"}]
[null,null,"CNPI 5p Percent decrease in the child neglect rate in the identified community.",null,null,null,null,null,{"$error":"#DIV/0!"},null,{"$error":"#DIV/0!"},{"$error":"#DIV/0!"}]
[null,null,"CNPI 5q Percent decrease in the elder abuse rate in the identified community. ",null,null,null,null,null,{"$error":"#DIV/0!"},null,{"$error":"#DIV/0!"},{"$error":"#DIV/0!"}]
[null,null,"CNPI 5r Percent decrease in the elder neglect rate in the identified community. ",null,null,null,null,null,{"$error":"#DIV/0!"},null,{"$error":"#DIV/0!"},{"$error":"#DIV/0!"}]
[]
[null,"Rates of Change","Rates of Change for Public Safety Indicators (CNPI 5)",null,null,"I.)  Identified Community\n(auto populated)","II.) Baseline existing starting point used for comparisons \n(%)","III.)  Target \n(%)","IV.)  Expected % change from baseline \n(Target %  auto calculated) ","V.)  Actual Results\n(%)","VI.)  Actual % change from baseline \n(% auto calculated) ","VII.) Performance target accuracy\n(% auto calculated)"]
[null,null,"CNPI 5s Percent decrease in recidivism rate in the identified community.",null,null,null,null,null,{"$f":"ROUND((H37-G37)/G37,2)","v":{"$error":"#DIV/0!"}},null,{"$f":"ROUND((J37-G37)/G37,2)","v":{"$error":"#DIV/0!"}},{"$f":"ROUND((J37-G37)/(H37-G37),2)","v":{"$error":"#DIV/0!"}}]
[null,null,"CNPI 5t Percent decrease in non-violent crime rate in the identified community.",null,null,null,null,null,{"$f":"ROUND((H38-G38)/G38,2)","v":{"$error":"#DIV/0!"}},null,{"$f":"ROUND((J38-G38)/G38,2)","v":{"$error":"#DIV/0!"}},{"$f":"ROUND((J38-G38)/(H38-G38),2)","v":{"$error":"#DIV/0!"}}]
[null,null,"CNPI 5u Percent decrease in violent crime rate in the identified community.",null,null,null,null,null,{"$f":"ROUND((H39-G39)/G39,2)","v":{"$error":"#DIV/0!"}},null,{"$f":"ROUND((J39-G39)/G39,2)","v":{"$error":"#DIV/0!"}},{"$f":"ROUND((J39-G39)/(H39-G39),2)","v":{"$error":"#DIV/0!"}}]
[null,null,"CNPI 5v Percent decrease in teens involved with the juvenile court system in the identified community.",null,null,null,null,null,{"$f":"ROUND((H40-G40)/G40,2)","v":{"$error":"#DIV/0!"}},null,{"$f":"ROUND((J40-G40)/G40,2)","v":{"$error":"#DIV/0!"}},{"$f":"ROUND((J40-G40)/(H40-G40),2)","v":{"$error":"#DIV/0!"}}]
[]
[null,"Other Rates of Change","Other Rates of Change for Health and Social/Behavioral Indicators (CNPI 5z)\n- Please specify below.",null,null,"I.)  Identified Community\n(auto populated)","II.) Baseline existing starting point used for comparisons \n(%)","III.)  Target \n(%)","IV.)  Expected % change from baseline \n(Target %  auto calculated) ","V.)  Actual Results\n(%)","VI.)  Actual % change from baseline \n(% auto calculated) ","VII.) Performance target accuracy\n(% auto calculated)"]
[null,null,"CNPI 5z.4 Other",null,null,null,null,null,{"$f":"ROUND((H43-G43)/G43,2)","v":{"$error":"#DIV/0!"}},null,{"$f":"ROUND((J43-G43)/G43,2)","v":{"$error":"#DIV/0!"}},{"$f":"ROUND((J43-G43)/(H43-G43),2)","v":{"$error":"#DIV/0!"}}]
[null,null,"CNPI 5z.5 Other",null,null,null,null,null,{"$f":"ROUND((H44-G44)/G44,2)","v":{"$error":"#DIV/0!"}},null,{"$f":"ROUND((J44-G44)/G44,2)","v":{"$error":"#DIV/0!"}},{"$f":"ROUND((J44-G44)/(H44-G44),2)","v":{"$error":"#DIV/0!"}}]
[null,null,"CNPI 5z.6 Other",null,null,null,null,null,{"$error":"#DIV/0!"},null,{"$error":"#DIV/0!"},{"$error":"#DIV/0!"}]
[]
[null,"General comments:"]

{"sheet":"Goal 2 Civic Engagement","index":9,"n_rows":19,"n_cols":12,"rows_kept":19,"cut":false,"hidden":false,"merged":[[13,1,16,1],[13,2,13,4],[16,2,16,4],[14,2,14,4],[1,1,1,11],[2,1,2,11],[3,1,3,11],[8,1,11,1],[8,2,8,4],[9,2,9,4],[10,2,10,4],[11,2,11,4],[5,5,5,9],[15,2,15,4]]}
[]
[null,"Module 3, Section B: Community National Performance Indicators (CNPIs) - Data Entry Form"]
[null,"Goal 2: Communities where people with low incomes live are healthy and offer economic opportunity."]
[null,"Civic Engagement and Community Involvement Indicators"]
[]
[null,null,null,null,"Name of CSBG Eligible Entity Reporting: "]
[]
[]
[null,"Rates of Change","Rates of Change for Civic Engagement and Community Involvement Indicators - Goal 2 (CNPI 6)",null,null,"I.)  Identified Community\n(auto-populated)","II.) Baseline existing starting point used for comparisons \n(%)","III.)  Target \n(%)","IV.)  Expected % change from baseline \n(Target %  auto calculated) ","V.)  Actual Results\n(%)","VI.)  Actual % change from baseline \n(% auto calculated) ","VII.) Performance target accuracy\n(% auto calculated)"]
[null,null,"CNPI 6 G2a Percent increase of donated time to support the CSBG Eligible Entity's delivery of services and/or implementation of strategies to address conditions of poverty in the identified community. ",null,null,null,null,null,{"$f":"ROUND((H10-G10)/G10,2)","v":{"$error":"#DIV/0!"}},null,{"$f":"ROUND((J10-G10)/G10,2)","v":{"$error":"#DIV/0!"}},{"$f":"ROUND((J10-G10)/(H10-G10),2)","v":{"$error":"#DIV/0!"}}]
[null,null,"CNPI 6 G2b Percent increase of donated resources to support the CSBG Eligible Entity's delivery of services and/or implementation of strategies to address conditions of poverty in the identified community. ",null,null,null,null,null,{"$f":"ROUND((H11-G11)/G11,2)","v":{"$error":"#DIV/0!"}},null,{"$f":"ROUND((J11-G11)/G11,2)","v":{"$error":"#DIV/0!"}},{"$f":"ROUND((J11-G11)/(H11-G11),2)","v":{"$error":"#DIV/0!"}}]
[null,null,"CNPI 6 G2c Percent increase of people participating in public hearings, policy forums, community planning, or other advisory boards related to the CSBG Eligible Entity's delivery of service and/or implementation of strategies to address conditions of poverty in the identified community.",null,null,null,null,null,{"$f":"ROUND((H12-G12)/G12,2)","v":{"$error":"#DIV/0!"}},null,{"$f":"ROUND((J12-G12)/G12,2)","v":{"$error":"#DIV/0!"}},{"$f":"ROUND((J12-G12)/(H12-G12),2)","v":{"$error":"#DIV/0!"}}]
[]
[null,"Other Rates of Change","Other Rates of Change for Civic Engagement and Community Involvement Indicators - Goal 2 (CNPI 6 G2z)\n- Please specify below.",null,null,"I.)  Identified Community\n(auto-populated)","II.) Baseline existing starting point used for comparisons \n(%)","III.)  Target \n(%)","IV.)  Expected % change from baseline \n(Target %  auto calculated) ","V.)  Actual Results\n(%)","VI.)  Actual % change from baseline \n(% auto calculated) ","VII.) Performance target accuracy\n(% auto calculated)"]
[null,null,"CNPI 6 G2z.1 Other",null,null,null,null,null,{"$f":"ROUND((H15-G15)/G15,2)","v":{"$error":"#DIV/0!"}},null,{"$f":"ROUND((J15-G15)/G15,2)","v":{"$error":"#DIV/0!"}},{"$f":"ROUND((J15-G15)/(H15-G15),2)","v":{"$error":"#DIV/0!"}}]
[null,null,"CNPI 6 G2z.2 Other",null,null,null,null,null,{"$f":"ROUND((H16-G16)/G16,2)","v":{"$error":"#DIV/0!"}},null,{"$f":"ROUND((J16-G16)/G16,2)","v":{"$error":"#DIV/0!"}},{"$f":"ROUND((J16-G16)/(H16-G16),2)","v":{"$error":"#DIV/0!"}}]
[null,null,"CNPI 6 G2z.3 Other",null,null,null,null,null,{"$f":"ROUND((H17-G17)/G17,2)","v":{"$error":"#DIV/0!"}},null,{"$f":"ROUND((J17-G17)/G17,2)","v":{"$error":"#DIV/0!"}},{"$f":"ROUND((J17-G17)/(H17-G17),2)","v":{"$error":"#DIV/0!"}}]
[]
[null,"General comments:"]

{"sheet":"Goal 3 Civic Engagement","index":10,"n_rows":18,"n_cols":12,"rows_kept":18,"cut":false,"hidden":false,"merged":[[12,1,15,1],[12,2,12,4],[13,2,13,4],[15,2,15,4],[1,1,1,11],[2,1,2,11],[3,1,3,11],[8,1,10,1],[8,2,8,4],[9,2,9,4],[10,2,10,4],[5,5,5,9],[14,2,14,4]]}
[]
[null,"Module 3, Section B: Community National Performance Indicators (CNPIs) - Data Entry Form"]
[null,"Goal 3: People with low-incomes are engaged and active in building opportunities in communities."]
[null,"Civic Engagement and Community Involvement Indicators"]
[]
[null,null,null,null,"Name of CSBG Eligible Entity Reporting: "]
[]
[]
[null,"Rates of Change","Rates of Change for Civic Engagement and Community Involvement Indicators - Goal 3 (CNPI 6)",null,null,"I.)  Identified Community\n(auto-populated)","II.) Baseline existing starting point used for comparisons \n(%)","III.)  Target \n(%)","IV.)  Expected % change from baseline \n(Target %  auto calculated) ","V.)  Actual Results\n(%)","VI.)  Actual % change from baseline \n(% auto calculated) ","VII.) Performance target accuracy\n(% auto calculated)"]
[null,null,"CNPI 6 G3a Percent increase of people with low incomes who support the CSBG Eligible Entity's delivery of service and/or implementation of strategies to address conditions of poverty in the identified community. ",null,null,null,null,null,{"$f":"ROUND((H10-G10)/G10,2)","v":{"$error":"#DIV/0!"}},null,{"$f":"ROUND((J10-G10)/G10,2)","v":{"$error":"#DIV/0!"}},{"$f":"ROUND((J10-G10)/(H10-G10),2)","v":{"$error":"#DIV/0!"}}]
[null,null,"CNPI 6 G3b Percent increase of people with low incomes who acquire and maintain leadership roles with the CSBG Eligible Entity or other organizations within the identified community. ",null,null,null,null,null,{"$f":"ROUND((H11-G11)/G11,2)","v":{"$error":"#DIV/0!"}},null,{"$f":"ROUND((J11-G11)/G11,2)","v":{"$error":"#DIV/0!"}},{"$f":"ROUND((J11-G11)/(H11-G11),2)","v":{"$error":"#DIV/0!"}}]
[]
[null,"Other Rates of Change","Other Rates of Change for Civic Engagement and Community Involvement Indicators - Goal 3 (CNPI 6 G3z)\n- Please specify below.",null,null,"I.)  Identified Community\n(auto-populated)","II.) Baseline existing starting point used for comparisons \n(%)","III.)  Target \n(%)","IV.)  Expected % change from baseline \n(Target %  auto calculated) ","V.)  Actual Results\n(%)","VI.)  Actual % change from baseline \n(% auto calculated) ","VII.) Performance target accuracy\n(% auto calculated)"]
[null,null,"CNPI 6 G3z.1 Other",null,null,null,null,null,{"$f":"ROUND((H14-G14)/G14,2)","v":{"$error":"#DIV/0!"}},null,{"$f":"ROUND((J14-G14)/G14,2)","v":{"$error":"#DIV/0!"}},{"$f":"ROUND((J14-G14)/(H14-G14),2)","v":{"$error":"#DIV/0!"}}]
[null,null,"CNPI 6 G3z.2 Other",null,null,null,null,null,{"$f":"ROUND((H15-G15)/G15,2)","v":{"$error":"#DIV/0!"}},null,{"$f":"ROUND((J15-G15)/G15,2)","v":{"$error":"#DIV/0!"}},{"$f":"ROUND((J15-G15)/(H15-G15),2)","v":{"$error":"#DIV/0!"}}]
[null,null,"CNPI 6 G3z.3 Other",null,null,null,null,null,{"$f":"ROUND((H16-G16)/G16,2)","v":{"$error":"#DIV/0!"}},null,{"$f":"ROUND((J16-G16)/G16,2)","v":{"$error":"#DIV/0!"}},{"$f":"ROUND((J16-G16)/(H16-G16),2)","v":{"$error":"#DIV/0!"}}]
[]
[null,"General comments:"]

{"sheet":"SectionC-Strategies List","index":11,"n_rows":114,"n_cols":2,"rows_kept":114,"cut":false,"hidden":false,"merged":[]}
[]
[null,"Module 3, Section C: Community Strategies List"]
[]
[null,"Employment Strategies (STR 1)"]
["STR 1a","Minimum/Living Wage Campaign "]
["STR 1b","Job Creation/Employment Generation "]
["STR 1c","Job Fairs"]
["STR 1d","Earned Income Tax Credit (EITC) Promotion"]
["STR 1e","Commercial Space Development"]
["STR 1f","Employer Education "]
["STR 1g","Employment Policy Changes"]
["STR 1h","Employment Legislative Changes"]
["STR 1i","Other Employment Strategy: (please specify)"]
[]
[null,"Education and Cognitive Development Strategies (STR 2)"]
["STR 2a","Preschool for All Campaign"]
["STR 2b","Charter School Development"]
["STR 2c","After School Enrichment Activities Promotion"]
["STR 2d","Pre K-College/Community College Support "]
["STR 2e","Children’s Trust Fund Creation"]
["STR 2f","Scholarship Creation"]
["STR 2g","Child Tax Credit (CTC) Promotion "]
["STR 2h","Adoption Child Care Quality Rating "]
["STR 2i","Adult Education Establishment"]
["STR 2j","Education and Cognitive Development Policy Changes"]
["STR 2k","Education and Cognitive Development Legislative Changes"]
["STR 2l","Other Education and Cognitive Development Strategy: (please specify)"]
[]
[null,"Infrastructure and Asset Building Strategies (STR 3)"]
["STR 3a","Cultural Asset Creation"]
["STR 3b","Police/Community Relations Campaign"]
["STR 3c","Neighborhood Safety Watch Programs"]
["STR 3d","Anti-Predatory Lending Campaign"]
["STR 3e","Asset Building and Savings Promotion "]
["STR 3f","Develop/Build/Rehab Spaces  "]
["STR 3g","Maintain or Host Income Tax Preparation Sites"]
["STR 3h","Community-Wide Data Collection Systems Development"]
["STR 3i","Local 211 or Resource/Referral System Development"]
["STR 3j","Water/Sewer System Development "]
["STR 3k","Community Financial Institution Creation"]
["STR 3l","Infrastructure Planning Coalition"]
["STR 3m","Park or Recreation Creation and Maintenance "]
["STR 3n","Rehabilitation/Weatherization of Housing Stock  "]
["STR 3o","Community Center/Community Facility Establishment"]
["STR 3p","Asset Limit Barriers for Benefits Policy Changes"]
["STR 3q","Infrastructure and Asset Building Policy Changes"]
["STR 3r","Infrastructure and Asset Building Legislative Changes"]
["STR 3s","Other Infrastructure and Asset Building Strategy: (please specify)"]
[]
[null,"Housing Strategies (STR 4)"]
["STR 4a","End Chronic Homelessness Campaign"]
["STR 4b","New Affordable Single Unit Housing Creation "]
["STR 4c","New Affordable Multi- Unit Housing Creation (Single Resident Occupancy (SRO), temporary housing, transitional housing)"]
["STR 4d","Tenants’ Rights Campaign"]
["STR 4e","New Shelters Creation (including day shelters and domestic violence shelters)"]
["STR 4f","Housing or Land Trust Creation"]
["STR 4g","Building Codes Campaign"]
["STR 4h","Housing Policy Changes"]
["STR 4i","Housing Legislative Changes "]
["STR 4j","Other Housing Strategy: (please specify)"]
[]
[null,"Health and Social/Behavioral Development Strategies (STR 5)"]
["STR 5a","Health Specific Campaign"]
["STR 5b","Farmers Market or  Community Garden Development"]
["STR 5c","Grocery Store Development"]
["STR 5d","Gun Safety/Control Campaign"]
["STR 5e","Healthy Food Campaign"]
["STR 5f","Nutrition Education Collaborative"]
["STR 5g","Food Bank Development"]
["STR 5h","Domestic Violence Court Development"]
["STR 5i","Drug Court Development"]
["STR 5j","Alternative Energy Source Development"]
["STR 5k","Develop or Maintain a Health Clinic"]
["STR 5l","Health and Social/Behavioral Development Policy Changes"]
["STR 5m","Health and Social/Behavioral Development Legislative Changes"]
["STR 5n","Other Health and Social/Behavioral Development Strategy: (please specify)"]
[]
[null,"Civic Engagement and Community Involvement Strategies - Goal 2 (STR 6 G2)"]
["STR 6 G2a","Development of Health and Social Service Provider Partnerships "]
["STR 6 G2b","Recruiting and Coordinating Community Volunteers"]
["STR 6 G2c","Poverty Simulations"]
["STR 6 G2d","Attract Capital Investments"]
["STR 6 G2e","Build/Support Increased Equity "]
["STR 6 G2f","Equity Awareness Campaign "]
["STR 6 G2g","Coordinated Community-wide Needs Assessment"]
["STR 6 G2h","Civic Engagement and Community Involvement in Advocacy Efforts"]
["STR 6 G2i","Civic Engagement Policy Changes "]
["STR 6 G2j","Civic Engagement Legislative Changes "]
["STR 6 G2k","Other Civic Engagement and Community Involvement Strategy: (please specify)"]
[]
[null,"Civic Engagement and Community Involvement Strategies - Goal 3 (STR 6 G3)"]
["STR 6 G3a","Empowerment of Individuals/Families with Low-Incomes "]
["STR 6 G3b","Campaign to Ensure Individuals with Low-Incomes are Represented on Local Governing Bodies "]
["STR 6 G3c","Social Capital Building Campaign for Individuals/Families with Low-Incomes"]
["STR 6 G3d","Campaign for Volunteer Placement and Coordination "]
["STR 6 G3e","Civic Engagement Policy Changes "]
["STR 6 G3f","Civic Engagement Legislative Changes "]
["STR 6 G3g","Other Civic Engagement and Community Involvement Strategy: (please specify)"]
[]
[null,"Community Support Strategies (STR 7)"]
["STR 7a","Off-Hours (Non-Traditional Hours) Child Care Development"]
["STR 7b","Transportation System Development"]
["STR 7c","Transportation Services Coordination and Support"]
["STR 7d","Community Support Policy Changes"]
["STR 7e","Community Support Legislative Changes "]
["STR 7f","Other Community Support Strategy: (please specify)"]
[]
[null,"Emergency Management Strategies (STR 8)"]
["STR 8a","State or Local Emergency Management Board Enhancement"]
["STR 8b","Community wide Emergency Disaster Relief Service Creation"]
["STR 8c","Disaster Preparation Planning"]
["STR 8d","Emergency Management Policy Changes"]
["STR 8e","Emergency Management Legislative Changes "]
["STR 8f","Other Emergency Management Strategy: (please specify)"]